fUSD/lending_fUSD_20260127
["ID","MTS","AMOUNT","RATE_DAILY","PERIOD"]
[403686280,1769479622166,400.0,0.000149,5]
[403686282,1769479709278,981.85,0.00019178,30]
[403686287,1769479763662,-175.25497291,0.00015392,2]
[403686292,1769479775951,5744.39,0.00015294,2]
[403686293,1769479776192,10000.01,0.00015294,2]
[403686294,1769479776220,10000.01,0.00015294,2]
[403686295,1769479776244,10000.01,0.00015294,2]
[403686296,1769479776267,10000.01,0.00015294,2]
[403686297,1769479776290,10000.01,0.00015294,2]
[403686298,1769479776313,10000.01,0.00015294,2]
[403686299,1769479776337,10000.01,0.00015294,2]
[403686300,1769479776360,10000.01,0.00015294,2]
[403686301,1769479776385,10000.01,0.00015294,2]
[403686302,1769479777134,-183.92092874,0.00015294,2]
[403686303,1769479782716,-314.95696843,0.00015294,2]
[403686304,1769479784816,-416.96558509,0.00015294,2]
[403686305,1769479786287,-257.34707972,0.00015294,2]
[403686306,1769479788129,-1831.19313767,0.00015294,2]
[403686307,1769479788339,-10000.01,0.00015294,2]
[403686308,1769479788663,-10000.01,0.00015294,2]
[403686309,1769479788720,-267.66914738,0.00015294,2]
[403686310,1769479788756,-10000.01,0.00015294,2]
[403686311,1769479788927,-10000.01,0.00015294,2]
[403686312,1769479789046,-10000.01,0.00015294,2]
[403686313,1769479789163,-10000.01,0.00015294,2]
[403686314,1769479790813,-265.86743962,0.00015294,2]
[403686315,1769479790845,-10000.01,0.00015294,2]
[403686316,1769479792004,-10000.01,0.00015294,2]
[403686317,1769479792036,-10000.01,0.00015294,2]
[403686318,1769479794604,-260.4172349,0.00015294,2]
[403686319,1769479796027,-257.28198577,0.00015294,2]
[403686320,1769479798135,-312.37523068,0.00015294,2]
[403686321,1769479803010,-267.93863731,0.00015293,2]
[403686322,1769479805427,155.0,0.00021,30]
[403686323,1769479805904,-241.31363509,0.00015293,2]
[403686324,1769479806143,-690.7477276,0.00015293,2]
[403686325,1769479806173,-300.0,0.00015293,2]
[403686326,1769479806223,-8018.5145448,0.00015294,2]
[403686327,1769479806390,-10000.01,0.00015294,2]
[403686328,1769479806511,-10000.01,0.00015294,2]
[403686329,1769479806628,-10000.01,0.00015294,2]
[403686330,1769479808016,-168.05363435,0.00015294,2]
[403686331,1769479809055,-151.0,0.00015291,2]
[403686332,1769479809100,-9698.01,0.00015294,2]
[403686333,1769479809187,-10000.01,0.00015294,2]
[403686334,1769479811097,-161.83096501,0.00015284,2]
[403686335,1769479813917,-241.20903499,0.00015284,2]
[403686336,1769479813947,-403.04,0.00015284,2]
[403686337,1769479814111,-8711.51193002,0.00015294,2]
[403686338,1769479814136,-10000.01,0.00015294,2]
[403686339,1769479814149,-10000.01,0.00015294,2]
[403686340,1769479814163,-10000.01,0.00015294,2]
[403686341,1769479814323,-210.7921822,0.00015294,2]
[403686342,1769479815826,-10000.01,0.00015294,2]
[403686343,1769479817081,-204.35792503,0.00015294,2]
[403686344,1769479818656,-10000.01,0.00015294,2]
[403686345,1769479818823,-10000.01,0.00015294,2]
[403686346,1769479818923,-10000.01,0.00015294,2]
[403686347,1769479819092,-10000.01,0.00015294,2]
[403686348,1769479819576,-157.22337686,0.00015294,2]
[403686349,1769479821767,-10000.01,0.00015294,2]
[403686350,1769479825011,-165.22858268,0.00015294,2]
[403686351,1769479826229,-170.25575688,0.00015294,2]
[403686352,1769479828622,-174.71617962,0.00015294,2]
[403686361,1769479832069,-320.124,0.00015294,2]
[403686363,1769479832123,-2000.0,0.00015294,2]
[403686364,1769479832135,-2579.82837852,0.00015294,2]
[403686365,1769479832147,-2225.9,0.00015294,2]
[403686366,1769479832158,-565.67220894,0.00015294,2]
[403686367,1769479832170,-2168.87632682,0.00015294,2]
[403686368,1769479832181,-335.26580545,0.00015294,2]
[403686369,1769479832193,-2500.1466798,0.00015294,2]
[403686370,1769479832204,-1014.02545008,0.00015294,2]
[403686371,1769479832216,-410.59441334,0.00015294,2]
[403686372,1769479832239,-7805.35260329,0.00015294,2]
[403686373,1769479832289,-339.14984787,0.00015294,2]
[403686374,1769479832301,-999.67682255,0.00015294,2]
[403686376,1769479832456,-233.42388047,0.00015294,2]
[403686393,1769479836004,-199.64214331,0.00015294,2]
[403686394,1769479837430,-242.34040579,0.00015294,2]
[403686396,1769479838283,-802.86808,0.00015294,2]
[403686397,1769479838309,-722.46490153,0.00015294,2]
[403686398,1769479838426,-73018.95369167,0.00015294,2]
[403686399,1769479838447,-904.1714245,0.00015294,2]
[403686400,1769479838472,-1650.0,0.00015294,2]
[403686407,1769479838540,-119249.62685259,0.00015294,2]
[403686410,1769479838558,-1407.60412328,0.00015294,2]
[403686433,1769479840136,-167.45274,0.00015294,2]
[403686437,1769479840958,-949.309992,0.00015294,2]
[403686438,1769479840990,-429396.17037776,0.00015294,2]
[403686439,1769479840999,-2489.2865,0.00015294,2]
[403686440,1769479841009,-250.0,0.00015392,2]
[403686441,1769479841019,-974.20804897,0.00015393,2]
[403686442,1769479841029,-500.0,0.00015393,2]
[403686443,1769479841038,-500.0,0.00015393,3]
[403686444,1769479841048,-500.0,0.00015393,4]
[403686445,1769479841058,-500.0,0.00015393,5]
[403686446,1769479841067,-300.0,0.00015393,2]
[403686447,1769479841076,-168.75060372,0.00015393,2]
[403686448,1769479841085,-168.75060372,0.00015393,2]
[403686449,1769479841095,-500.0,0.00015393,2]
[403686450,1769479841104,-540.68261458,0.00015393,2]
[403686451,1769479841113,-202.30755757,0.00015393,2]
[403686452,1769479841122,-207.42518821,0.00015393,2]
[403686453,1769479841131,-12521.07960876,0.00015394,2]
[403686454,1769479841140,-440.53682606,0.00015394,2]
[403686455,1769479841149,-150.0,0.00015394,2]
[403686456,1769479841158,-1000.0,0.00015494,2]
[403686457,1769479841167,-150.00179385,0.00015574,2]
[403686458,1769479841176,-899.77863443,0.00015583,2]
[403686459,1769479841186,-628.71091688,0.00015593,2]
[403686460,1769479841195,-500.0,0.00015593,2]
[403686461,1769479841205,-500.0,0.00015593,2]
[403686462,1769479841214,-500.0,0.00015593,2]
[403686463,1769479841224,-500.0,0.00015593,2]
[403686464,1769479841233,-500.0,0.00015593,2]
[403686465,1769479841243,-500.0,0.00015593,3]
[403686466,1769479841252,-500.0,0.00015593,4]
[403686467,1769479841261,-500.0,0.00015593,5]
[403686468,1769479841270,-494.4736191,0.0001565,2]
[403686469,1769479841279,-155.0,0.0001565,2]
[403686470,1769479841288,-151.0,0.00015703,2]
[403686471,1769479841298,-151.0,0.00015705,2]
[403686472,1769479841307,-151.0,0.00015707,2]
[403686473,1769479841316,-151.0,0.00015708,2]
[403686474,1769479841325,-5142.37,0.00015791,2]
[403686475,1769479841334,-500.0,0.00015806,2]
[403686476,1769479841342,-500.0,0.00015806,6]
[403686477,1769479841351,-150.0,0.00015894,2]
[403686478,1769479841360,-150.0,0.00015894,2]
[403686479,1769479841369,-164.13,0.00015976,2]
[403686480,1769479841379,-150.0,0.00015991,2]
[403686481,1769479841388,-675.09194497,0.00016008,2]
[403686482,1769479841397,-185.30481228,0.00016008,2]
[403686483,1769479841407,-569.89,0.00016046,2]
[403686484,1769479841416,-1949.43932688,0.00016058,2]
[403686485,1769479841425,-500.0,0.00016069,2]
[403686486,1769479841434,-440.53682602,0.00016117,2]
[403686487,1769479841447,-12521.07960874,0.0001616,2]
[403686488,1769479841457,-3240.0,0.00016203,2]
[403686489,1769479841466,-2352.75,0.00016221,2]
[403686490,1769479841475,-500.0,0.00016373,2]
[403686491,1769479841485,-501.39656226,0.00016373,2]
[403686492,1769479841494,-160.26031695,0.00016373,2]
[403686493,1769479841503,-501.74666468,0.00016373,2]
[403686494,1769479841514,-415.3567827,0.00016373,2]
[403686495,1769479841524,-500.0,0.00016373,2]
[403686496,1769479841533,-503.21050409,0.00016373,2]
[403686497,1769479841542,-856.0,0.00016424,2]
[403686498,1769479841551,-242.85600432,0.00016438,2]
[403686499,1769479841560,-510.0,0.00016517,2]
[403686500,1769479841570,-10512.92,0.00016574,2]
[403686501,1769479841579,-2374.53005215,0.00016583,2]
[403686502,1769479841590,-4188.95247403,0.00016583,2]
[403686503,1769479841599,-166.68,0.00016626,2]
[403686504,1769479841609,-569.89,0.00016648,2]
[403686505,1769479841619,-165.22,0.00016712,2]
[403686506,1769479841627,-1680.0,0.00016817,2]
[403686507,1769479841636,-440.53682602,0.0001684,2]
[403686508,1769479841646,-195.89,0.0001689,2]
[403686509,1769479841655,-13221.84775918,0.000169,2]
[403686510,1769479841664,-12521.07960874,0.00016926,2]
[403686511,1769479841673,-201.23359422,0.00016931,2]
[403686512,1769479841682,-2500.0,0.00016931,2]
[403686513,1769479841692,-250.0,0.00016931,2]
[403686514,1769479841701,-250.0,0.00016931,2]
[403686515,1769479841710,-495.01908059,0.00016931,2]
[403686516,1769479841719,-166.66,0.00016937,2]
[403686517,1769479841728,-150.00179385,0.0001694,2]
[403686518,1769479841738,-250.0,0.00017,2]
[403686519,1769479841747,-322.6107,0.00017209,2]
[403686520,1769479841757,-3543.0,0.00017209,2]
[403686521,1769479841766,-250.0,0.00017209,2]
[403686522,1769479841775,-201.93286101,0.00017209,2]
[403686523,1769479841786,-823.77908852,0.00017209,2]
[403686524,1769479841796,-250.0,0.00017209,2]
[403686525,1769479841807,-151.0,0.00017209,2]
[403686526,1769479841817,-250.0,0.00017209,2]
[403686527,1769479841826,-250.0,0.00017209,2]
[403686528,1769479841835,-250.0,0.00017209,2]
[403686529,1769479841844,-250.0,0.00017209,2]
[403686530,1769479841854,-250.0,0.00017209,2]
[403686531,1769479841863,-250.0,0.00017209,2]
[403686532,1769479841873,-250.0,0.00017209,2]
[403686533,1769479841882,-250.0,0.00017209,2]
[403686534,1769479841891,-250.0,0.00017209,2]
[403686535,1769479841901,-250.0,0.00017209,2]
[403686536,1769479841912,-500.0,0.00017209,2]
[403686537,1769479841927,-500.0,0.00017209,2]
[403686538,1769479841936,-500.0,0.00017209,2]
[403686539,1769479841946,-500.0,0.00017209,2]
[403686540,1769479841955,-250.0,0.00017209,2]
[403686541,1769479841964,-500.0,0.00017209,2]
[403686542,1769479841974,-250.0,0.00017209,2]
[403686543,1769479841983,-250.0,0.00017209,2]
[403686544,1769479841993,-500.0,0.00017209,2]
[403686545,1769479842002,-250.0,0.00017209,2]
[403686546,1769479842012,-250.0,0.00017209,2]
[403686547,1769479842021,-500.0,0.00017209,2]
[403686548,1769479842030,-250.0,0.00017209,2]
[403686549,1769479842039,-250.0,0.00017209,2]
[403686550,1769479842048,-500.0,0.00017209,2]
[403686551,1769479842057,-250.0,0.00017209,2]
[403686552,1769479842066,-250.0,0.00017209,2]
[403686553,1769479842075,-500.0,0.00017209,2]
[403686554,1769479842084,-250.0,0.00017209,2]
[403686555,1769479842093,-250.0,0.00017209,2]
[403686556,1769479842103,-500.0,0.00017209,2]
[403686557,1769479842112,-250.0,0.00017209,2]
[403686558,1769479842122,-250.0,0.00017209,2]
[403686559,1769479842131,-500.0,0.00017209,2]
[403686560,1769479842141,-250.0,0.00017209,2]
[403686561,1769479842150,-250.0,0.00017209,2]
[403686562,1769479842159,-500.0,0.00017209,2]
[403686563,1769479842168,-201.93286099,0.00017209,2]
[403686564,1769479842177,-250.0,0.00017209,2]
[403686565,1769479842186,-346.21416368,0.00017209,2]
[403686566,1769479842196,-250.0,0.00017209,2]
[403686567,1769479842206,-250.0,0.00017209,2]
[403686568,1769479842215,-250.0,0.00017209,2]
[403686569,1769479842224,-250.0,0.00017209,2]
[403686570,1769479842234,-250.0,0.00017209,2]
[403686571,1769479842243,-250.0,0.00017209,2]
[403686572,1769479842252,-250.0,0.00017209,2]
[403686573,1769479842262,-250.0,0.00017209,2]
[403686574,1769479842271,-250.0,0.00017209,2]
[403686575,1769479842280,-250.0,0.00017209,2]
[403686576,1769479842472,-250.0,0.00017209,2]
[403686577,1769479842490,-250.0,0.00017209,2]
[403686578,1769479842499,-250.0,0.00017209,2]
[403686579,1769479842508,-1000.0,0.00017209,2]
[403686580,1769479842519,-174.61919141,0.00017209,2]
[403686581,1769479842529,-695.39793187,0.00017209,2]
[403686582,1769479842538,-250.0,0.00017209,2]
[403686583,1769479842547,-1000.0,0.00017209,2]
[403686584,1769479842556,-1000.0,0.00017209,2]
[403686585,1769479842566,-273.46832537,0.00017209,2]
[403686586,1769479842575,-260.94508809,0.00017209,2]
[403686587,1769479842584,-1000.0,0.00017209,2]
[403686588,1769479842593,-1000.0,0.00017209,2]
[403686589,1769479842602,-1000.0,0.00017209,2]
[403686590,1769479842611,-1000.0,0.00017209,2]
[403686591,1769479842620,-1000.0,0.00017209,2]
[403686592,1769479842629,-1000.0,0.00017209,2]
[403686593,1769479842638,-871.93931809,0.00017209,2]
[403686594,1769479842649,-151.0,0.00017209,2]
[403686595,1769479842658,-578.20924308,0.00017209,2]
[403686596,1769479842668,-569.89,0.0001725,2]
[403686597,1769479842677,-166.66,0.00017294,2]
[403686598,1769479842686,-152.0,0.0001737,3]
[403686599,1769479842695,-500.0,0.00017417,2]
[403686600,1769479842705,-500.0,0.00017417,7]
[403686601,1769479842715,-8112.0,0.00017495,2]
[403686602,1769479842724,-1000.0,0.00017534,2]
[403686603,1769479842733,-440.53682602,0.00017563,2]
[403686604,1769479842742,-159.43753018,0.00017576,2]
[403686605,1769479842752,-6266.42237636,0.00017583,2]
[403686606,1769479842761,-500.0,0.00017589,2]
[403686607,1769479842770,-166.66,0.00017651,2]
[403686608,1769479842779,-12521.07960874,0.00017691,2]
[403686609,1769479842789,-259.53,0.000177,2]
[403686610,1769479842799,-900.0,0.000177,6]
[403686611,1769479842809,-917.362,0.00017705,2]
[403686612,1769479842819,-1204.53,0.00017705,2]
[403686613,1769479842829,-152.0,0.00017722,4]
[403686614,1769479842838,-2447.647,0.00017736,2]
[403686615,1769479842847,-567.0,0.00017736,2]
[403686616,1769479842856,-4831.0,0.00017736,2]
[403686617,1769479842866,-854.2589148,0.00017757,2]
[403686619,1769479842875,-151.0,0.00017757,2]
[403686621,1769479842884,-209.40437684,0.00017757,2]
[403686623,1769479842894,-181.08010149,0.00017757,2]
[403686625,1769479842903,-1300.0,0.000178,6]
[403686626,1769479842912,-1000.0,0.00017808,2]
[403686627,1769479842921,-569.89,0.00017851,2]
[403686628,1769479842931,-2006.0,0.00017878,2]
[403686629,1769479842940,-150.0,0.00017894,2]
[403686630,1769479842949,-250.3590836,0.000179,2]
[403686631,1769479842959,-1800.0,0.000179,6]
[403686632,1769479842969,-7378.416242,0.00017999,2]
[403686633,1769479842979,-500.0,0.00017999,2]
[403686634,1769479842988,-500.0,0.00017999,2]
[403686635,1769479842997,-500.0,0.00017999,2]
[403686636,1769479843007,-500.0,0.00017999,2]
[403686637,1769479843016,-500.0,0.00017999,2]
[403686638,1769479843025,-500.0,0.00017999,2]
[403686639,1769479843034,-644.03360712,0.00017999,2]
[403686640,1769479843043,-500.0,0.00017999,8]
[403686641,1769479843053,-500.0,0.00017999,9]
[403686642,1769479843062,-500.0,0.00017999,10]
[403686643,1769479843071,-500.0,0.00017999,11]
[403686644,1769479843080,-500.0,0.00017999,12]
[403686645,1769479843088,-500.0,0.00017999,18]
[403686646,1769479843097,-300.0,0.00017999,2]
[403686647,1769479843107,-671.15158679,0.00017999,2]
[403686648,1769479843115,-500.0,0.00017999,6]
[403686650,1769479843125,-500.0,0.00017999,7]
[403686651,1769479843134,-500.0,0.00017999,8]
[403686653,1769479843143,-500.0,0.00017999,9]
[403686654,1769479843152,-500.0,0.00017999,10]
[403686655,1769479843161,-500.0,0.00017999,11]
[403686656,1769479843170,-500.0,0.00017999,12]
[403686657,1769479843179,-568.84478952,0.00017999,13]
[403686658,1769479843189,-150.0,0.00017999,2]
[403686659,1769479843198,-365135.44426725,0.00018,2]
[403686660,1769479843215,-1566.80826959,0.00018,2]
[403686665,1769479846805,-8078.15878465,0.00018,2]
[403686668,1769479858066,155.0,0.00021,30]
[403686672,1769479930248,10000.01,0.00015294,2]
[403686673,1769479930275,10000.01,0.00015294,2]
[403686674,1769479930300,10000.01,0.00015294,2]
[403686675,1769479930325,10000.01,0.00015294,2]
[403686676,1769479930351,10000.01,0.00015294,2]
[403686677,1769479930377,10000.01,0.00015294,2]
[403686678,1769479930403,10000.01,0.00015294,2]
[403686679,1769479930428,10000.01,0.00015294,2]
[403686680,1769479931240,-167.31867766,0.00015294,2]
[403686681,1769479934927,-201.62648842,0.00015294,2]
[403686682,1769479937647,-361.02572261,0.00015294,2]
[403686683,1769479952394,210.0,9.989e-05,2]
[403686684,1769479962510,528.478462,0.00015217,2]
[403686685,1769480078522,-151.0,0.00015291,2]
[403686686,1769480078545,-323.89142777,0.00015293,2]
[403686687,1769480088700,713.65019247,0.00015194,2]
[403686688,1769480163084,8367.08357735,0.00015194,2]
[403686689,1769480214455,180.79776818,0.00015194,2]
[403686690,1769480214480,42.29223382,0.00015194,2]
[403686691,1769480240152,161.29910396,0.00015193,2]
[403686692,1769480246229,161.29910396,0.00015194,2]
[403686693,1769480252149,161.29910396,0.00015194,2]
[403686694,1769480258442,-171.92393582,0.00015293,2]
[403686695,1769480289129,-271.15589761,0.00015292,2]
[403686712,1769480474530,642.28517325,0.00015194,2]
[403686731,1769480531594,-200.0,0.00015285,2]
[403686732,1769480531615,-28.84410239,0.00015285,2]
[403686734,1769480536665,-173.45650255,0.00015285,2]
[403686735,1769480536688,-104.45289569,0.00015285,2]
[403686739,1769480540025,-86.13970102,0.00015285,2]
[403686740,1769480540050,-202.50363538,0.00015285,2]
[403686741,1769480540073,-2.38513436,0.00015285,2]
[403686793,1769480678571,8474.08214286,0.00015194,2]
[403686809,1769480702382,200.0,0.00015095,2]
[403686840,1769480743590,157.45313819,0.00015211,2]
[403686841,1769480743613,47.24686181,0.00015211,2]
[403686915,1769480843962,200.0,0.000149,5]
[403686927,1769480860409,-208.97152924,0.00015283,2]
[403686930,1769480862189,-34.02847076,0.00015283,2]
[403686931,1769480862217,-265.97152924,0.00015283,2]
[403686935,1769480865936,578.05665588,0.00015194,2]
[403686943,1769480874894,156.01482609,0.00021,30]
[403686969,1769480938538,8391.46,0.00014887,2]
[403686978,1769480972713,783.24648231,0.00015193,2]
[403686979,1769480972738,10000.01,0.00015193,2]
[403686980,1769480972764,10000.01,0.00015193,2]
[403686981,1769480972794,10000.01,0.00015193,2]
[403686982,1769480972822,10000.01,0.00015193,2]
[403686983,1769480972849,10000.01,0.00015193,2]
[403686984,1769480972872,10000.01,0.00015193,2]
[403686985,1769480972896,10000.01,0.00015193,2]
[403686987,1769480974401,-225.66994004,0.00015193,2]
[403686988,1769480976555,-191.39807647,0.00015193,2]
[403686990,1769480980495,-217.50417788,0.00015193,2]
[403686991,1769480983568,-300.0,0.00015193,2]
[403686993,1769480985861,-300.0,0.00015193,2]
[403686994,1769480990303,-209.78581975,0.00015193,2]
[403686996,1769480991319,-254.36856334,0.00015193,2]
[403686997,1769480995509,-10000.01,0.00015193,2]
[403686998,1769480995597,-10000.01,0.00015193,2]
[403686999,1769480995688,-10000.01,0.00015193,2]
[403687000,1769480995795,-10000.01,0.00015193,2]
[403687001,1769480995877,-10000.01,0.00015193,2]
[403687002,1769480995981,-10000.01,0.00015193,2]
[403687003,1769480998918,-10000.01,0.00015193,2]
[403687004,1769480999139,-10000.01,0.00015193,2]
[403687005,1769480999392,-463.83968361,0.00015193,2]
[403687006,1769481005203,-300.0,0.00015192,2]
[403687007,1769481005226,-145.55790925,0.00015192,2]
[403687008,1769481006505,-1054.44209075,0.00015192,2]
[403687009,1769481006545,-300.0,0.00015192,2]
[403687010,1769481006577,-300.0,0.00015192,2]
[403687011,1769481006607,-300.0,0.00015192,2]
[403687012,1769481006756,-6091.1258185,0.00015193,2]
[403687013,1769481006786,-10000.01,0.00015193,2]
[403687014,1769481006812,-10000.01,0.00015193,2]
[403687015,1769481007009,-10000.01,0.00015193,2]
[403687016,1769481007334,-10000.01,0.00015193,2]
[403687017,1769481007403,-10000.01,0.00015193,2]
[403687018,1769481007845,-311.9700595,0.00015193,2]
[403687019,1769481007875,-10000.01,0.00015193,2]
[403687023,1769481011831,-834.03947645,0.00015193,2]
[403687037,1769481032239,-446.81641851,0.00015193,2]
[403687048,1769481032343,-2286.90336051,0.00015193,2]
[403687049,1769481032470,-572.0678,0.00015193,2]
[403687050,1769481032481,-879.45743612,0.00015193,2]
[403687061,1769481035845,500.0,0.000149,5]
[403687064,1769481038323,-3379.8,0.00015193,2]
[403687077,1769481038785,-140408.45886317,0.00015193,2]
[403687080,1769481038807,-6075.94110169,0.00015193,2]
[403687098,1769481040466,-625767.39692215,0.00015193,2]
[403687099,1769481040476,-1557.61292132,0.00015193,2]
[403687100,1769481040485,-889.22141191,0.00015193,2]
[403687101,1769481040494,-926.47041239,0.00015193,2]
[403687102,1769481040504,-953.66014294,0.00015193,2]
[403687103,1769481040513,-495.01908059,0.00015193,2]
[403687104,1769481040522,-502.14491625,0.00015193,2]
[403687105,1769481040531,-195.0,0.00015193,2]
[403687106,1769481040541,-2553.93048328,0.00015194,2]
[403687107,1769481040550,-300.0,0.00015194,2]
[403687108,1769481040559,-1471.8196,0.00015194,2]
[403687109,1769481040568,-1311.9163,0.00015194,2]
[403687110,1769481040577,-2500.0,0.00015194,2]
[403687111,1769481040586,-195.0,0.0001523,2]
[403687112,1769481040595,-300.0,0.00015284,2]
[403687113,1769481040604,-500.0,0.00015285,2]
[403687114,1769481040614,-151.0,0.00015285,2]
[403687115,1769481040623,-151.0,0.00015285,2]
[403687116,1769481040632,-151.0,0.00015285,2]
[403687117,1769481040641,-151.0,0.00015285,2]
[403687118,1769481040650,-151.0,0.00015285,2]
[403687119,1769481040659,-151.0,0.00015285,2]
[403687120,1769481040668,-151.0,0.00015285,2]
[403687121,1769481040678,-151.0,0.00015285,2]
[403687122,1769481040687,-151.0,0.00015285,2]
[403687123,1769481040696,-151.0,0.00015285,2]
[403687124,1769481040705,-151.0,0.00015285,2]
[403687125,1769481040715,-151.0,0.00015285,2]
[403687126,1769481040724,-151.0,0.00015285,2]
[403687127,1769481040733,-500.0,0.00015285,2]
[403687128,1769481040742,-151.0,0.00015285,2]
[403687129,1769481040751,-500.0,0.00015285,2]
[403687130,1769481040760,-151.0,0.00015285,2]
[403687131,1769481040769,-500.0,0.00015285,2]
[403687132,1769481040778,-151.0,0.00015285,2]
[403687133,1769481040788,-500.0,0.00015285,2]
[403687134,1769481040797,-151.0,0.00015285,2]
[403687135,1769481040806,-500.0,0.00015285,2]
[403687136,1769481040815,-151.0,0.00015285,2]
[403687137,1769481040824,-500.0,0.00015285,2]
[403687138,1769481040833,-191.92438148,0.00015285,2]
[403687139,1769481040842,-500.0,0.00015285,2]
[403687140,1769481040851,-200.0,0.00015285,2]
[403687141,1769481040860,-212.1033362,0.00015285,2]
[403687142,1769481040872,-151.0,0.00015285,2]
[403687143,1769481040881,-151.0,0.00015285,2]
[403687144,1769481040890,-151.0,0.00015285,2]
[403687145,1769481040899,-151.0,0.00015285,2]
[403687146,1769481040908,-151.0,0.00015285,2]
[403687147,1769481040917,-151.0,0.00015285,2]
[403687148,1769481040926,-151.0,0.00015285,2]
[403687149,1769481040935,-151.0,0.00015285,2]
[403687150,1769481040944,-151.0,0.00015285,2]
[403687152,1769481040953,-151.0,0.00015285,2]
[403687154,1769481040962,-151.0,0.00015285,2]
[403687155,1769481040971,-151.0,0.00015285,2]
[403687156,1769481040981,-500.0,0.00015285,2]
[403687157,1769481040990,-500.0,0.00015285,2]
[403687158,1769481040999,-500.0,0.00015285,2]
[403687159,1769481041008,-500.0,0.00015285,2]
[403687161,1769481041017,-500.0,0.00015285,2]
[403687162,1769481041026,-500.0,0.00015285,2]
[403687163,1769481041036,-388.21772815,0.00015285,2]
[403687164,1769481041045,-239.40375743,0.00015286,2]
[403687165,1769481041054,-250.0,0.0001529,2]
[403687166,1769481041063,-500.0,0.0001529,2]
[403687167,1769481041073,-505.29157362,0.0001529,2]
[403687168,1769481041083,-647.83954011,0.0001529,2]
[403687169,1769481041093,-500.0,0.0001529,2]
[403687170,1769481041102,-500.0,0.0001529,2]
[403687171,1769481041112,-500.0,0.0001529,2]
[403687172,1769481041121,-500.0,0.0001529,2]
[403687173,1769481041131,-325.0,0.0001529,2]
[403687175,1769481041140,-500.0,0.0001529,2]
[403687176,1769481041150,-500.0,0.0001529,2]
[403687177,1769481041159,-500.0,0.0001529,2]
[403687178,1769481041168,-500.0,0.0001529,2]
[403687179,1769481041177,-500.0,0.0001529,2]
[403687180,1769481041187,-353.70797198,0.0001529,2]
[403687181,1769481041196,-500.0,0.0001529,2]
[403687182,1769481041205,-500.0,0.0001529,2]
[403687183,1769481041215,-500.0,0.0001529,2]
[403687184,1769481041224,-500.0,0.0001529,2]
[403687185,1769481041233,-565.1944831,0.0001529,2]
[403687186,1769481041242,-500.0,0.0001529,2]
[403687187,1769481041252,-498.00046332,0.0001529,2]
[403687188,1769481041260,-500.0,0.0001529,2]
[403687189,1769481041270,-500.0,0.0001529,2]
[403687190,1769481041278,-500.0,0.0001529,2]
[403687191,1769481041287,-500.0,0.0001529,2]
[403687192,1769481041296,-500.0,0.0001529,2]
[403687193,1769481041305,-500.0,0.0001529,2]
[403687194,1769481041314,-500.0,0.0001529,2]
[403687195,1769481041323,-500.0,0.0001529,2]
[403687196,1769481041332,-500.0,0.0001529,2]
[403687197,1769481041341,-500.0,0.0001529,2]
[403687198,1769481041350,-500.0,0.0001529,2]
[403687199,1769481041359,-500.0,0.0001529,2]
[403687200,1769481041368,-500.0,0.0001529,2]
[403687201,1769481041377,-500.0,0.0001529,2]
[403687202,1769481041386,-500.0,0.0001529,2]
[403687203,1769481041395,-500.0,0.0001529,2]